[Event "Titled Tuesday Blitz December 13 Early 2022"]
[White "Prieto Aranguren, Alain"]
[Black "Torres Dominguez, David"]
[WhiteFideId "2268906"]
[BlackFideId "2220857"]
[WhiteElo "2209"]
[BlackElo "2037"]
[Result "1-0"]
[Round "08"]
[TimeControl "180+1"]
[Date "2022.12.14"]
[WhiteClock "0:01:08"]
[BlackClock "0:00:01"]

1. e4 {[%clk 0:02:59]}  Nc6 {[%clk 0:02:59]} 2. Bb5 {[%clk 0:02:56]}  e5 {[%clk 0:02:56]} 3. Nh3 {[%clk 0:02:54]}  Nf6 {[%clk 0:02:52]} 4. O-O {[%clk 0:02:50]}  Bc5 {[%clk 0:02:52]} 5. Ng5 {[%clk 0:02:41]}  O-O {[%clk 0:02:46]} 6. c3 {[%clk 0:02:36]}  a6 {[%clk 0:02:36]} 7. Bxc6 {[%clk 0:02:32]}  dxc6 {[%clk 0:02:35]} 8. d3 {[%clk 0:02:31]}  h6 {[%clk 0:02:31]} 9. Nf3 {[%clk 0:02:28]}  Qd6 {[%clk 0:02:28]} 10. d4 {[%clk 0:02:22]}  exd4 {[%clk 0:01:37]} 11. e5 {[%clk 0:02:20]}  Qd8 {[%clk 0:01:26]} 12. exf6 {[%clk 0:02:16]}  Qxf6 {[%clk 0:01:26]} 13. cxd4 {[%clk 0:02:16]}  Rd8 {[%clk 0:01:26]} 14. Be3 {[%clk 0:02:11]}  Bg4 {[%clk 0:01:26]} 15. Nc3 {[%clk 0:02:04]}  Bxf3 {[%clk 0:01:24]} 16. Qxf3 {[%clk 0:02:03]}  Qxf3 {[%clk 0:01:23]} 17. gxf3 {[%clk 0:02:03]}  Bxd4 {[%clk 0:01:24]} 18. Bxd4 {[%clk 0:02:03]}  Rxd4 {[%clk 0:01:24]} 19. Rad1 {[%clk 0:02:03]}  Rad8 {[%clk 0:01:24]} 20. Rxd4 {[%clk 0:02:02]}  Rxd4 {[%clk 0:01:24]} 21. Rd1 {[%clk 0:02:03]}  Rf4 {[%clk 0:01:21]} 22. Kg2 {[%clk 0:02:01]}  b5 {[%clk 0:01:05]} 23. Rd7 {[%clk 0:01:59]}  b4 {[%clk 0:00:55]} 24. Ne4 {[%clk 0:01:58]}  f5 {[%clk 0:00:31]} 25. Kg3 {[%clk 0:01:57]}  g5 {[%clk 0:00:32]} 26. Nf6+ {[%clk 0:01:54]}  Kf8 {[%clk 0:00:32]} 27. Rxc7 {[%clk 0:01:43]}  Rc4 {[%clk 0:00:31]} 28. Nd7+ {[%clk 0:01:32]}  Kg8 {[%clk 0:00:23]} 29. Ne5 {[%clk 0:01:32]}  Rc2 {[%clk 0:00:23]} 30. Rxc6 {[%clk 0:01:27]}  f4+ {[%clk 0:00:20]} 31. Kg4 {[%clk 0:01:24]}  Rxb2 {[%clk 0:00:19]} 32. Kf5 {[%clk 0:01:19]}  Rd2 {[%clk 0:00:01]} 33. Kg6 {[%clk 0:01:13]}  Kf8 {[%clk 0:00:01]} 34. Kf6 {[%clk 0:01:08]} 1-0


[Site "https://www.chess.com"]

[Event "Titled Tuesday Blitz December 13 Early 2022"]
[White "Redzisz, Michal"]
[Black "Lacasa Diaz, Jose Antonio"]
[WhiteFideId "21816107"]
[BlackFideId "2203375"]
[WhiteElo "2136"]
[BlackElo "2338"]
[Result "1-0"]
[Round "08"]
[TimeControl "180+1"]
[Date "2022.12.14"]
[WhiteClock "0:00:19"]
[BlackClock "0:00:26"]

1. e4 {[%clk 0:03:00]}  c5 {[%clk 0:02:56]} 2. Nf3 {[%clk 0:03:01]}  g6 {[%clk 0:02:55]} 3. d4 {[%clk 0:02:57]}  cxd4 {[%clk 0:02:55]} 4. Nxd4 {[%clk 0:02:58]}  Nc6 {[%clk 0:02:54]} 5. c4 {[%clk 0:02:58]}  Nf6 {[%clk 0:02:53]} 6. Nc3 {[%clk 0:02:58]}  Nxd4 {[%clk 0:02:54]} 7. Qxd4 {[%clk 0:02:58]}  d6 {[%clk 0:02:55]} 8. Be3 {[%clk 0:02:57]}  Bg7 {[%clk 0:02:56]} 9. f3 {[%clk 0:02:56]}  O-O {[%clk 0:02:56]} 10. Qd2 {[%clk 0:02:57]}  a5 {[%clk 0:02:55]} 11. Be2 {[%clk 0:02:56]}  a4 {[%clk 0:02:56]} 12. O-O {[%clk 0:02:55]}  Qa5 {[%clk 0:02:57]} 13. Rac1 {[%clk 0:02:50]}  Be6 {[%clk 0:02:56]} 14. Nb5 {[%clk 0:02:40]}  Qxd2 {[%clk 0:02:48]} 15. Bxd2 {[%clk 0:02:41]}  Rfc8 {[%clk 0:02:47]} 16. Na3 {[%clk 0:02:11]}  Nd7 {[%clk 0:02:40]} 17. Kf2 {[%clk 0:02:04]}  Bxb2 {[%clk 0:02:37]} 18. Nb5 {[%clk 0:02:01]}  Bxc1 {[%clk 0:02:33]} 19. Rxc1 {[%clk 0:02:02]}  Ne5 {[%clk 0:02:22]} 20. Na3 {[%clk 0:01:57]}  Rc7 {[%clk 0:02:16]} 21. f4 {[%clk 0:01:51]}  Nd7 {[%clk 0:02:14]} 22. g4 {[%clk 0:01:47]}  Nc5 {[%clk 0:02:10]} 23. Ke3 {[%clk 0:01:43]}  Bd7 {[%clk 0:02:04]} 24. f5 {[%clk 0:01:35]}  Bc6 {[%clk 0:02:03]} 25. Bf3 {[%clk 0:01:29]}  Nd7 {[%clk 0:01:52]} 26. Bc3 {[%clk 0:01:20]}  Ne5 {[%clk 0:01:49]} 27. Bd4 {[%clk 0:01:14]}  Bd7 {[%clk 0:01:33]} 28. Be2 {[%clk 0:01:04]}  Rac8 {[%clk 0:01:30]} 29. Bb6 {[%clk 0:01:00]}  Rc6 {[%clk 0:01:29]} 30. Bd4 {[%clk 0:01:01]}  b5 {[%clk 0:01:21]} 31. Bxe5 {[%clk 0:00:55]}  dxe5 {[%clk 0:01:21]} 32. Nxb5 {[%clk 0:00:55]}  Rb6 {[%clk 0:01:11]} 33. Nc3 {[%clk 0:00:47]}  Rb2 {[%clk 0:01:03]} 34. Nd5 {[%clk 0:00:44]}  Kf8 {[%clk 0:01:02]} 35. c5 {[%clk 0:00:35]}  Bc6 {[%clk 0:00:49]} 36. Nb6 {[%clk 0:00:36]}  Rd8 {[%clk 0:00:47]} 37. Nc4 {[%clk 0:00:34]}  Rxa2 {[%clk 0:00:44]} 38. Nxe5 {[%clk 0:00:34]}  Bxe4 {[%clk 0:00:39]} 39. Bc4 {[%clk 0:00:32]}  Bd5 {[%clk 0:00:28]} 40. Bxa2 {[%clk 0:00:18]}  Bxa2 {[%clk 0:00:29]} 41. c6 {[%clk 0:00:18]}  Bb3 {[%clk 0:00:29]} 42. c7 {[%clk 0:00:16]}  Rc8 {[%clk 0:00:29]} 43. Nd7+ {[%clk 0:00:17]}  Ke8 {[%clk 0:00:28]} 44. Nb6 {[%clk 0:00:18]}  Rxc7 {[%clk 0:00:26]} 45. Rxc7 {[%clk 0:00:19]} 1-0


[Site "https://www.chess.com"]

[Event "Titled Tuesday Blitz December 13 Early 2022"]
[White "Rosenberg, Evan S"]
[Black "Sadubayev, Airat"]
[WhiteFideId "2019299"]
[BlackFideId "13713264"]
[WhiteElo "2419"]
[BlackElo "2160"]
[Result "0-1"]
[Round "08"]
[TimeControl "180+1"]
[Date "2022.12.14"]
[WhiteClock "0:00:03"]
[BlackClock "0:00:28"]

1. d4 {[%clk 0:03:00]}  d5 {[%clk 0:02:59]} 2. Nf3 {[%clk 0:03:00]}  Nf6 {[%clk 0:02:59]} 3. c3 {[%clk 0:03:01]}  c6 {[%clk 0:02:53]} 4. Qc2 {[%clk 0:03:00]}  g6 {[%clk 0:02:45]} 5. Bf4 {[%clk 0:02:57]}  Bf5 {[%clk 0:02:38]} 6. Qb3 {[%clk 0:02:57]}  Qb6 {[%clk 0:02:37]} 7. Nbd2 {[%clk 0:02:58]}  Bg7 {[%clk 0:02:36]} 8. h3 {[%clk 0:02:51]}  O-O {[%clk 0:02:33]} 9. e3 {[%clk 0:02:52]}  Nbd7 {[%clk 0:02:29]} 10. g4 {[%clk 0:02:51]}  Be4 {[%clk 0:02:29]} 11. g5 {[%clk 0:02:46]}  Nh5 {[%clk 0:02:23]} 12. Nxe4 {[%clk 0:02:35]}  dxe4 {[%clk 0:02:22]} 13. Nd2 {[%clk 0:02:33]}  Nxf4 {[%clk 0:02:20]} 14. exf4 {[%clk 0:02:32]}  Qc7 {[%clk 0:02:19]} 15. f5 {[%clk 0:02:18]}  gxf5 {[%clk 0:02:15]} 16. O-O-O {[%clk 0:02:09]}  a5 {[%clk 0:02:10]} 17. a4 {[%clk 0:01:41]}  e6 {[%clk 0:02:02]} 18. Bc4 {[%clk 0:01:31]}  Rfb8 {[%clk 0:02:01]} 19. h4 {[%clk 0:01:19]}  Nb6 {[%clk 0:01:57]} 20. h5 {[%clk 0:01:17]}  Nd5 {[%clk 0:01:49]} 21. g6 {[%clk 0:01:02]}  fxg6 {[%clk 0:01:42]} 22. hxg6 {[%clk 0:01:02]}  h6 {[%clk 0:01:42]} 23. Nf1 {[%clk 0:00:56]}  Qf4+ {[%clk 0:01:21]} 24. Rd2 {[%clk 0:00:55]}  Kh8 {[%clk 0:01:12]} 25. Bxd5 {[%clk 0:00:41]}  exd5 {[%clk 0:01:10]} 26. Ne3 {[%clk 0:00:38]}  b5 {[%clk 0:01:07]} 27. axb5 {[%clk 0:00:31]}  Rxb5 {[%clk 0:01:06]} 28. Qa3 {[%clk 0:00:26]}  Qg5 {[%clk 0:00:59]} 29. Qd6 {[%clk 0:00:23]}  f4 {[%clk 0:00:59]} 30. Nd1 {[%clk 0:00:15]}  Rb6 {[%clk 0:00:48]} 31. Qc5 {[%clk 0:00:13]}  Rab8 {[%clk 0:00:47]} 32. Qxa5 {[%clk 0:00:14]}  Qxg6 {[%clk 0:00:43]} 33. b4 {[%clk 0:00:13]}  Qe8 {[%clk 0:00:35]} 34. Qc5 {[%clk 0:00:11]}  Bf8 {[%clk 0:00:35]} 35. Qa5 {[%clk 0:00:09]}  Qc8 {[%clk 0:00:33]} 36. Qa1 {[%clk 0:00:08]}  Ra6 {[%clk 0:00:33]} 37. Qb2 {[%clk 0:00:07]}  Rba8 {[%clk 0:00:34]} 38. Rc2 {[%clk 0:00:06]}  e3 {[%clk 0:00:26]} 39. fxe3 {[%clk 0:00:05]}  fxe3 {[%clk 0:00:27]} 40. Nxe3 {[%clk 0:00:06]}  Ra1+ {[%clk 0:00:27]} 41. Kd2 {[%clk 0:00:04]}  Rxh1 {[%clk 0:00:28]} 42. Rc1 {[%clk 0:00:03]}  Rh2+ {[%clk 0:00:28]} 0-1


[Site "https://www.chess.com"]

[Event "Titled Tuesday Blitz December 13 Early 2022"]
[White "Royal, Shreyas"]
[Black "Forgacs, Attila Jr."]
[WhiteFideId "448869"]
[BlackFideId "773654"]
[WhiteElo "2331"]
[BlackElo "2168"]
[Result "1-0"]
[Round "08"]
[TimeControl "180+1"]
[Date "2022.12.14"]
[WhiteClock "0:00:43"]
[BlackClock "0:00:01"]

1. e4 {[%clk 0:02:56]}  e5 {[%clk 0:02:59]} 2. Nf3 {[%clk 0:02:56]}  Nc6 {[%clk 0:02:59]} 3. Bb5 {[%clk 0:02:57]}  a6 {[%clk 0:02:59]} 4. Ba4 {[%clk 0:02:57]}  Nf6 {[%clk 0:03:00]} 5. O-O {[%clk 0:02:56]}  Be7 {[%clk 0:03:00]} 6. Re1 {[%clk 0:02:54]}  b5 {[%clk 0:03:01]} 7. Bb3 {[%clk 0:02:54]}  O-O {[%clk 0:03:02]} 8. a4 {[%clk 0:02:52]}  b4 {[%clk 0:03:02]} 9. d4 {[%clk 0:02:52]}  d6 {[%clk 0:03:01]} 10. c3 {[%clk 0:02:46]}  Bg4 {[%clk 0:03:00]} 11. d5 {[%clk 0:02:45]}  Na5 {[%clk 0:02:54]} 12. cxb4 {[%clk 0:02:45]}  Nxb3 {[%clk 0:02:54]} 13. Qxb3 {[%clk 0:02:46]}  Rb8 {[%clk 0:02:44]} 14. Bd2 {[%clk 0:02:45]}  Nh5 {[%clk 0:02:41]} 15. h3 {[%clk 0:02:44]}  Bd7 {[%clk 0:02:38]} 16. Na3 {[%clk 0:02:40]}  f5 {[%clk 0:02:32]} 17. exf5 {[%clk 0:02:39]}  Bxf5 {[%clk 0:02:07]} 18. g4 {[%clk 0:02:38]}  Qd7 {[%clk 0:02:07]} 19. Nh2 {[%clk 0:02:26]}  Bh4 {[%clk 0:01:48]} 20. Re2 {[%clk 0:02:04]}  Bg6 {[%clk 0:01:26]} 21. gxh5 {[%clk 0:02:04]}  Bxh5 {[%clk 0:01:26]} 22. Re4 {[%clk 0:01:56]}  Bxf2+ {[%clk 0:01:25]} 23. Kh1 {[%clk 0:01:56]}  Bf3+ {[%clk 0:01:19]} 24. Qxf3 {[%clk 0:01:49]}  Rxf3 {[%clk 0:01:17]} 25. Nxf3 {[%clk 0:01:50]}  Qxh3+ {[%clk 0:01:17]} 26. Nh2 {[%clk 0:01:51]}  Bg3 {[%clk 0:01:08]} 27. Re2 {[%clk 0:01:50]}  Rf8 {[%clk 0:01:02]} 28. Nc4 {[%clk 0:01:39]}  Bxh2 {[%clk 0:00:30]} 29. Rxh2 {[%clk 0:01:40]}  Qf3+ {[%clk 0:00:31]} 30. Rg2 {[%clk 0:01:40]}  Qd3 {[%clk 0:00:31]} 31. Ne3 {[%clk 0:01:37]}  Rf3 {[%clk 0:00:22]} 32. Re1 {[%clk 0:01:19]}  Rh3+ {[%clk 0:00:18]} 33. Kg1 {[%clk 0:01:19]}  Rh4 {[%clk 0:00:06]} 34. b5 {[%clk 0:01:17]}  axb5 {[%clk 0:00:06]} 35. a5 {[%clk 0:01:17]}  b4 {[%clk 0:00:06]} 36. Rf1 {[%clk 0:01:15]}  b3 {[%clk 0:00:03]} 37. Rgf2 {[%clk 0:01:13]}  h6 {[%clk 0:00:03]} 38. Rg2 {[%clk 0:01:11]}  h5 {[%clk 0:00:03]} 39. Ra1 {[%clk 0:01:07]}  Re4 {[%clk 0:00:03]} 40. a6 {[%clk 0:01:07]}  Rxe3 {[%clk 0:00:01]} 41. a7 {[%clk 0:01:07]}  Re2 {[%clk 0:00:01]} 42. a8=Q+ {[%clk 0:01:06]}  Kh7 {[%clk 0:00:02]} 43. Qf8 {[%clk 0:00:42]}  Rxg2+ {[%clk 0:00:01]} 44. Kxg2 {[%clk 0:00:43]}  Qxd2+ {[%clk 0:00:01]} 45. Qf2 {[%clk 0:00:43]}  Qxd5+ {[%clk 0:00:01]} 46. Kh2 {[%clk 0:00:43]} 1-0


[Site "https://www.chess.com"]

[Event "Titled Tuesday Blitz December 13 Early 2022"]
[White "Santos Flores, Alberto"]
[Black "Topalov, Aleksandar"]
[WhiteFideId "3601234"]
[BlackFideId "925659"]
[WhiteElo "2235"]
[BlackElo "2151"]
[Result "1-0"]
[Round "08"]
[TimeControl "180+1"]
[Date "2022.12.14"]
[WhiteClock "0:00:20"]
[BlackClock "0:00:15"]

1. d4 {[%clk 0:03:00]}  Nf6 {[%clk 0:02:59]} 2. c4 {[%clk 0:02:56]}  c5 {[%clk 0:02:59]} 3. Nf3 {[%clk 0:02:54]}  g6 {[%clk 0:02:58]} 4. Nc3 {[%clk 0:02:52]}  Bg7 {[%clk 0:02:57]} 5. e4 {[%clk 0:02:51]}  O-O {[%clk 0:02:57]} 6. Be2 {[%clk 0:02:48]}  cxd4 {[%clk 0:02:55]} 7. Nxd4 {[%clk 0:02:47]}  Nc6 {[%clk 0:02:55]} 8. Be3 {[%clk 0:02:47]}  d6 {[%clk 0:02:55]} 9. f3 {[%clk 0:02:45]}  Nxd4 {[%clk 0:02:55]} 10. Bxd4 {[%clk 0:02:44]}  Bd7 {[%clk 0:02:56]} 11. b4 {[%clk 0:02:32]}  a6 {[%clk 0:02:49]} 12. O-O {[%clk 0:02:31]}  Rc8 {[%clk 0:02:49]} 13. Rc1 {[%clk 0:02:26]}  Qc7 {[%clk 0:02:43]} 14. Qd2 {[%clk 0:02:19]}  Qb8 {[%clk 0:02:41]} 15. Rfd1 {[%clk 0:02:12]}  Rfd8 {[%clk 0:02:37]} 16. Bxf6 {[%clk 0:02:05]}  Bxf6 {[%clk 0:02:35]} 17. Nd5 {[%clk 0:02:04]}  Be6 {[%clk 0:02:27]} 18. Nxf6+ {[%clk 0:02:03]}  exf6 {[%clk 0:02:27]} 19. Qe3 {[%clk 0:01:48]}  b6 {[%clk 0:02:25]} 20. Rd4 {[%clk 0:01:45]}  a5 {[%clk 0:02:24]} 21. a3 {[%clk 0:01:43]}  axb4 {[%clk 0:02:24]} 22. axb4 {[%clk 0:01:44]}  f5 {[%clk 0:02:11]} 23. exf5 {[%clk 0:01:36]}  Bxf5 {[%clk 0:02:12]} 24. Qh6 {[%clk 0:01:31]}  Qc7 {[%clk 0:02:05]} 25. Rcd1 {[%clk 0:01:22]}  f6 {[%clk 0:02:00]} 26. Bf1 {[%clk 0:01:17]}  Qe7 {[%clk 0:01:54]} 27. Qf4 {[%clk 0:01:14]}  d5 {[%clk 0:01:14]} 28. Rxd5 {[%clk 0:01:11]}  Rxd5 {[%clk 0:01:12]} 29. cxd5 {[%clk 0:01:09]}  Rd8 {[%clk 0:01:11]} 30. d6 {[%clk 0:01:08]}  Qd7 {[%clk 0:01:07]} 31. Bc4+ {[%clk 0:01:05]}  Kg7 {[%clk 0:01:06]} 32. Qd4 {[%clk 0:00:56]}  Qc6 {[%clk 0:01:05]} 33. g4 {[%clk 0:00:34]}  Bd7 {[%clk 0:01:03]} 34. g5 {[%clk 0:00:34]}  Qxf3 {[%clk 0:01:02]} 35. Rf1 {[%clk 0:00:33]}  Qg4+ {[%clk 0:00:59]} 36. Qxg4 {[%clk 0:00:32]}  Bxg4 {[%clk 0:00:59]} 37. Rxf6 {[%clk 0:00:32]}  h6 {[%clk 0:00:51]} 38. h4 {[%clk 0:00:30]}  hxg5 {[%clk 0:00:50]} 39. hxg5 {[%clk 0:00:31]}  Bf5 {[%clk 0:00:43]} 40. Kf2 {[%clk 0:00:29]}  Rc8 {[%clk 0:00:33]} 41. Bd5 {[%clk 0:00:24]}  Rc2+ {[%clk 0:00:29]} 42. Ke3 {[%clk 0:00:24]}  Rc3+ {[%clk 0:00:29]} 43. Kd4 {[%clk 0:00:22]}  Rd3+ {[%clk 0:00:30]} 44. Kc4 {[%clk 0:00:22]}  Rg3 {[%clk 0:00:15]} 45. Rf7+ {[%clk 0:00:21]}  Kg8 {[%clk 0:00:15]} 46. Rxf5+ {[%clk 0:00:20]} 1-0


[Site "https://www.chess.com"]

[Event "Titled Tuesday Blitz December 13 Early 2022"]
[White "Seo, Jung Min"]
[Black "Lawson, Eric"]
[WhiteFideId "1734687"]
[BlackFideId "2604116"]
[WhiteElo "2457"]
[BlackElo "2528"]
[Result "1-0"]
[Round "08"]
[TimeControl "180+1"]
[Date "2022.12.14"]
[WhiteClock "0:01:12"]
[BlackClock "0:00:05"]

1. e4 {[%clk 0:02:59]}  c5 {[%clk 0:02:58]} 2. Nf3 {[%clk 0:03:00]}  Nc6 {[%clk 0:02:58]} 3. Bb5 {[%clk 0:02:59]}  g6 {[%clk 0:02:58]} 4. Bxc6 {[%clk 0:02:59]}  dxc6 {[%clk 0:02:59]} 5. O-O {[%clk 0:02:58]}  Bg7 {[%clk 0:02:59]} 6. d3 {[%clk 0:02:58]}  Bg4 {[%clk 0:02:59]} 7. h3 {[%clk 0:02:56]}  Bxf3 {[%clk 0:02:59]} 8. Qxf3 {[%clk 0:02:56]}  e5 {[%clk 0:02:59]} 9. a4 {[%clk 0:02:54]}  a5 {[%clk 0:02:58]} 10. Nd2 {[%clk 0:02:54]}  Nf6 {[%clk 0:02:40]} 11. Nc4 {[%clk 0:02:52]}  Qc7 {[%clk 0:02:40]} 12. Bd2 {[%clk 0:02:51]}  O-O {[%clk 0:02:37]} 13. Qe2 {[%clk 0:02:43]}  Nd7 {[%clk 0:02:37]} 14. f4 {[%clk 0:02:40]}  exf4 {[%clk 0:02:33]} 15. Bxf4 {[%clk 0:02:40]}  Ne5 {[%clk 0:02:32]} 16. b3 {[%clk 0:02:39]}  Qe7 {[%clk 0:02:21]} 17. Rab1 {[%clk 0:02:36]}  b5 {[%clk 0:02:12]} 18. Nxe5 {[%clk 0:02:33]}  Bxe5 {[%clk 0:02:11]} 19. Bxe5 {[%clk 0:02:32]}  Qxe5 {[%clk 0:02:11]} 20. Ra1 {[%clk 0:02:32]}  f5 {[%clk 0:02:06]} 21. Rfe1 {[%clk 0:02:32]}  f4 {[%clk 0:02:05]} 22. Qf3 {[%clk 0:02:31]}  h5 {[%clk 0:01:55]} 23. Kh1 {[%clk 0:02:31]}  Kh7 {[%clk 0:01:55]} 24. Rad1 {[%clk 0:02:22]}  Kh6 {[%clk 0:01:53]} 25. h4 {[%clk 0:02:21]}  bxa4 {[%clk 0:01:51]} 26. bxa4 {[%clk 0:02:21]}  Rab8 {[%clk 0:01:51]} 27. c3 {[%clk 0:02:20]}  Rb3 {[%clk 0:01:49]} 28. d4 {[%clk 0:02:20]}  cxd4 {[%clk 0:01:49]} 29. Rxd4 {[%clk 0:02:10]}  c5 {[%clk 0:01:34]} 30. Rd5 {[%clk 0:02:10]}  Qxc3 {[%clk 0:01:34]} 31. Qf2 {[%clk 0:02:06]}  Qg3 {[%clk 0:01:26]} 32. Rf1 {[%clk 0:02:03]}  Qg4 {[%clk 0:01:15]} 33. Rg5 {[%clk 0:02:00]}  Qe6 {[%clk 0:01:06]} 34. Qxc5 {[%clk 0:01:54]}  Rfb8 {[%clk 0:00:56]} 35. Re5 {[%clk 0:01:32]}  Qg4 {[%clk 0:00:54]} 36. Qe7 {[%clk 0:01:32]}  Rb1 {[%clk 0:00:17]} 37. Qg5+ {[%clk 0:01:24]}  Kh7 {[%clk 0:00:17]} 38. Rxb1 {[%clk 0:01:18]}  Rxb1+ {[%clk 0:00:17]} 39. Kh2 {[%clk 0:01:18]}  f3 {[%clk 0:00:07]} 40. Re7+ {[%clk 0:01:15]}  Kg8 {[%clk 0:00:07]} 41. Qd5+ {[%clk 0:01:13]}  Kh8 {[%clk 0:00:05]} 42. Qd8# {[%clk 0:01:12]} 1-0


[Site "https://www.chess.com"]

[Event "Titled Tuesday Blitz December 13 Early 2022"]
[White "Simonovic, Miroslav"]
[Black "Arbunic Castro, Giovanna"]
[WhiteFideId "919152"]
[BlackFideId "3400549"]
[WhiteElo "2057"]
[BlackElo "1928"]
[Result "1-0"]
[Round "08"]
[TimeControl "180+1"]
[Date "2022.12.14"]
[WhiteClock "0:00:25"]
[BlackClock "0:00:26"]

1. d4 {[%clk 0:02:49]}  Nf6 {[%clk 0:02:58]} 2. Bg5 {[%clk 0:02:50]}  g6 {[%clk 0:02:57]} 3. Bxf6 {[%clk 0:02:50]}  exf6 {[%clk 0:02:57]} 4. c4 {[%clk 0:02:51]}  Bg7 {[%clk 0:02:56]} 5. Nc3 {[%clk 0:02:51]}  f5 {[%clk 0:02:56]} 6. g3 {[%clk 0:02:51]}  O-O {[%clk 0:02:56]} 7. e3 {[%clk 0:02:52]}  c5 {[%clk 0:02:48]} 8. Nge2 {[%clk 0:02:50]}  cxd4 {[%clk 0:02:46]} 9. exd4 {[%clk 0:02:51]}  Nc6 {[%clk 0:02:45]} 10. Bg2 {[%clk 0:02:51]}  b6 {[%clk 0:02:27]} 11. O-O {[%clk 0:02:37]}  Ba6 {[%clk 0:02:26]} 12. b3 {[%clk 0:02:35]}  Rb8 {[%clk 0:02:24]} 13. Qd2 {[%clk 0:02:23]}  Re8 {[%clk 0:02:22]} 14. a4 {[%clk 0:02:17]}  Nb4 {[%clk 0:02:18]} 15. Nd5 {[%clk 0:02:05]}  Nxd5 {[%clk 0:02:15]} 16. Bxd5 {[%clk 0:02:06]}  Bb7 {[%clk 0:02:15]} 17. Nc3 {[%clk 0:02:03]}  Qf6 {[%clk 0:02:09]} 18. Rad1 {[%clk 0:02:01]}  Re7 {[%clk 0:01:59]} 19. Bxb7 {[%clk 0:01:59]}  Rxb7 {[%clk 0:01:58]} 20. Nd5 {[%clk 0:01:59]}  Qd6 {[%clk 0:01:55]} 21. Nxe7+ {[%clk 0:01:59]}  Qxe7 {[%clk 0:01:54]} 22. Rfe1 {[%clk 0:01:59]}  Qd8 {[%clk 0:01:50]} 23. d5 {[%clk 0:01:48]}  d6 {[%clk 0:01:49]} 24. Re2 {[%clk 0:01:48]}  Be5 {[%clk 0:01:41]} 25. f4 {[%clk 0:01:46]}  Bf6 {[%clk 0:01:37]} 26. Rde1 {[%clk 0:01:46]}  Re7 {[%clk 0:01:34]} 27. Rxe7 {[%clk 0:01:44]}  Bxe7 {[%clk 0:01:33]} 28. Qe3 {[%clk 0:01:36]}  Kf8 {[%clk 0:01:32]} 29. Qxe7+ {[%clk 0:01:16]}  Qxe7 {[%clk 0:01:30]} 30. Rxe7 {[%clk 0:01:17]}  Kxe7 {[%clk 0:01:28]} 31. b4 {[%clk 0:01:17]}  a5 {[%clk 0:01:13]} 32. bxa5 {[%clk 0:01:16]}  bxa5 {[%clk 0:01:12]} 33. Kf2 {[%clk 0:01:17]}  Kd7 {[%clk 0:01:11]} 34. Ke3 {[%clk 0:01:17]}  Kc7 {[%clk 0:01:11]} 35. Kd4 {[%clk 0:00:55]}  Kb6 {[%clk 0:01:11]} 36. h3 {[%clk 0:00:45]}  f6 {[%clk 0:01:09]} 37. Kd3 {[%clk 0:00:32]}  Kc5 {[%clk 0:01:07]} 38. Kc3 {[%clk 0:00:32]}  g5 {[%clk 0:00:51]} 39. Kd3 {[%clk 0:00:31]}  h5 {[%clk 0:00:50]} 40. h4 {[%clk 0:00:23]}  gxh4 {[%clk 0:00:42]} 41. gxh4 {[%clk 0:00:23]}  Kb4 {[%clk 0:00:41]} 42. Kd4 {[%clk 0:00:23]}  Kxa4 {[%clk 0:00:32]} 43. c5 {[%clk 0:00:24]}  dxc5+ {[%clk 0:00:30]} 44. Kxc5 {[%clk 0:00:24]}  Kb3 {[%clk 0:00:30]} 45. d6 {[%clk 0:00:25]}  a4 {[%clk 0:00:30]} 46. d7 {[%clk 0:00:25]}  a3 {[%clk 0:00:30]} 47. d8=Q {[%clk 0:00:26]}  a2 {[%clk 0:00:30]} 48. Qxf6 {[%clk 0:00:25]}  Kc2 {[%clk 0:00:26]} 49. Qa1 {[%clk 0:00:25]} 1-0


[Site "https://www.chess.com"]